fUST/lending_fUST_20250923
["ID","MTS","AMOUNT","RATE_DAILY","PERIOD"]
[387194117,1758633042155,-480.0,0.00019178,2]
[387194118,1758633042164,-480.0,0.00019178,2]
[387194119,1758633042173,-480.0,0.00019178,2]
[387194120,1758633042183,-1348.17,0.00019178,2]
[387194121,1758633042192,-480.0,0.00019178,2]
[387194122,1758633042201,-480.0,0.00019178,2]
[387194123,1758633042211,-480.0,0.00019178,2]
[387194124,1758633042221,-480.0,0.00019178,2]
[387194125,1758633042230,-480.0,0.00019178,2]
[387194126,1758633042240,-486.31114406,0.00019178,2]
[387194127,1758633042249,-480.0,0.00019178,2]
[387194128,1758633042258,-480.0,0.00019178,2]
[387194129,1758633042269,-480.0,0.00019178,2]
[387194130,1758633042278,-480.0,0.00019178,2]
[387194131,1758633042287,-480.0,0.00019178,2]
[387194132,1758633042296,-1114.57540215,0.00019178,2]
[387194133,1758633042309,-401.2941972,0.00019178,2]
[387194134,1758633042320,-266.9869136,0.00019178,2]
[387194135,1758633042331,-291.300155,0.00019178,2]
[387194136,1758633042343,-4790.50516435,0.00019178,2]
[387194137,1758633042354,-2257.6181677,0.00019178,2]
[387194138,1758633042363,-480.0,0.00019178,2]
[387194139,1758633042372,-480.0,0.00019178,2]
[387194140,1758633042383,-480.0,0.00019178,2]
[387194141,1758633042392,-480.0,0.00019178,2]
[387194142,1758633042401,-480.0,0.00019178,2]
[387194143,1758633042410,-480.0,0.00019178,2]
[387194144,1758633042420,-480.0,0.00019178,2]
[387194145,1758633042429,-486.16756521,0.00019178,2]
[387194146,1758633042438,-480.0,0.00019178,2]
[387194147,1758633042448,-480.0,0.00019178,2]
[387194148,1758633042457,-480.0,0.00019178,2]
[387194149,1758633042467,-502.07475793,0.00019178,2]
[387194150,1758633042476,-792.71,0.00019178,2]
[387194151,1758633042489,-480.0,0.00019178,2]
[387194152,1758633042498,-943.16,0.00019178,2]
[387194153,1758633042509,-480.0,0.00019178,2]
[387194154,1758633042518,-480.0,0.00019178,2]
[387194155,1758633042528,-480.0,0.00019178,2]
[387194156,1758633042537,-480.0,0.00019178,2]
[387194157,1758633042546,-480.0,0.00019178,2]
[387194158,1758633042555,-480.0,0.00019178,2]
[387194159,1758633042565,-480.0,0.00019178,2]
[387194160,1758633042574,-480.0,0.00019178,2]
[387194161,1758633042583,-480.0,0.00019178,2]
[387194162,1758633042592,-480.0,0.00019178,2]
[387194163,1758633042601,-480.0,0.00019178,2]
[387194164,1758633042610,-480.0,0.00019178,2]
[387194165,1758633042620,-481.60010585,0.00019178,2]
[387194166,1758633042629,-488.78482368,0.00019178,2]
[387194167,1758633042638,-847.92,0.00019178,2]
[387194168,1758633042647,-480.0,0.00019178,2]
[387194170,1758633042656,-1050.38,0.00019178,2]
[387194172,1758633042665,-480.0,0.00019178,2]
[387194174,1758633042674,-480.0,0.00019178,2]
[387194176,1758633042683,-480.0,0.00019178,2]
[387194179,1758633042692,-480.0,0.00019178,2]
[387194181,1758633042702,-1779.84,0.00019178,2]
[387194183,1758633042712,-480.0,0.00019178,2]
[387194185,1758633042721,-480.0,0.00019178,2]
[387194187,1758633042731,-480.0,0.00019178,2]
[387194189,1758633042739,-480.0,0.00019178,2]
[387194191,1758633042748,-480.0,0.00019178,2]
[387194192,1758633042757,-480.0,0.00019178,2]
[387194193,1758633042766,-480.0,0.00019178,2]
[387194194,1758633042775,-480.0,0.00019178,2]
[387194195,1758633042784,-210.33112836,0.00019178,2]
[387194196,1758633042793,-480.0,0.00019178,2]
[387194197,1758633042803,-1195.61,0.00019178,2]
[387194198,1758633042812,-910.41,0.00019178,2]
[387194199,1758633042821,-480.0,0.00019178,2]
[387194200,1758633042830,-480.0,0.00019178,2]
[387194201,1758633042839,-481.15570942,0.00019178,2]
[387194202,1758633042848,-480.0,0.00019178,2]
[387194203,1758633042857,-480.0,0.00019178,2]
[387194204,1758633042867,-480.0,0.00019178,2]
[387194205,1758633042876,-480.0,0.00019178,2]
[387194206,1758633042885,-480.0,0.00019178,2]
[387194207,1758633042894,-480.0,0.00019178,2]
[387194208,1758633042904,-480.0,0.00019178,2]
[387194210,1758633042914,-1773.46,0.00019178,2]
[387194211,1758633042924,-480.0,0.00019178,2]
[387194212,1758633042936,-480.0,0.00019178,2]
[387194213,1758633042945,-480.0,0.00019178,2]
[387194214,1758633042954,-480.0,0.00019178,2]
[387194215,1758633042963,-480.0,0.00019178,2]
[387194216,1758633042973,-480.0,0.00019178,2]
[387194217,1758633042981,-480.0,0.00019178,2]
[387194218,1758633042990,-481.24140894,0.00019178,2]
[387194219,1758633042999,-650.44,0.00019178,2]
[387194220,1758633043016,-480.0,0.00019178,2]
[387194221,1758633043026,-480.9054162,0.00019178,2]
[387194222,1758633043034,-480.0,0.00019178,2]
[387194224,1758633043043,-480.0,0.00019178,2]
[387194226,1758633043052,-481.4541547,0.00019178,2]
[387194227,1758633043061,-480.0,0.00019178,2]
[387194228,1758633043070,-480.0,0.00019178,2]
[387194229,1758633043079,-480.0,0.00019178,2]
[387194230,1758633043088,-480.0,0.00019178,2]
[387194231,1758633043097,-480.0,0.00019178,2]
[387194232,1758633043106,-480.0,0.00019178,2]
[387194233,1758633043115,-480.0,0.00019178,2]
[387194234,1758633043130,-480.0,0.00019178,2]
[387194235,1758633043140,-480.0,0.00019178,2]
[387194236,1758633043149,-514.28545463,0.00019178,2]
[387194237,1758633043159,-150.35553495,0.00019178,2]
[387194238,1758633043168,-480.0,0.00019178,2]
[387194239,1758633043177,-480.0,0.00019178,2]
[387194240,1758633043186,-480.0,0.00019178,2]
[387194241,1758633043195,-480.0,0.00019178,2]
[387194242,1758633043204,-480.0,0.00019178,2]
[387194243,1758633043213,-480.0,0.00019178,2]
[387194244,1758633043223,-617.24,0.00019178,2]
[387194245,1758633043232,-480.0,0.00019178,2]
[387194246,1758633043241,-480.7365516,0.00019178,2]
[387194247,1758633043251,-480.0,0.00019178,2]
[387194248,1758633043260,-480.0,0.00019178,2]
[387194249,1758633043269,-484.61020092,0.00019178,2]
[387194250,1758633043278,-498.73502388,0.00019178,2]
[387194251,1758633043287,-480.0,0.00019178,2]
[387194252,1758633043296,-480.0,0.00019178,2]
[387194253,1758633043306,-407.84182632,0.00019178,2]
[387194254,1758633043315,-627.91,0.00019178,2]
[387194255,1758633043324,-480.0,0.00019178,2]
[387194256,1758633043334,-339.73081647,0.00019178,2]
[387194257,1758633043343,-939.87,0.00019178,2]
[387194258,1758633043352,-307.73189601,0.00019178,2]
[387194259,1758633043361,-2116.38,0.00019178,2]
[387194260,1758633043370,-480.0,0.00019178,2]
[387194261,1758633043380,-480.0,0.00019178,2]
[387194262,1758633043389,-692.23,0.00019178,2]
[387194263,1758633043398,-480.0,0.00019178,2]
[387194264,1758633043407,-672.99,0.00019178,2]
[387194265,1758633043416,-480.0,0.00019178,2]
[387194266,1758633043425,-480.0,0.00019178,2]
[387194267,1758633043434,-480.0,0.00019178,2]
[387194268,1758633043444,-480.0,0.00019178,2]
[387194269,1758633043453,-480.0,0.00019178,2]
[387194270,1758633043462,-560.78664806,0.00019178,2]
[387194273,1758633043710,-268.96335194,0.00019178,2]
[387194274,1758633043719,-151.60543519,0.00019178,2]
[387194275,1758633043735,-1004.17559423,0.00019178,2]
[387194283,1758633044040,-481.46,0.00019178,2]
[387194285,1758633044051,-1845.26202843,0.00019178,2]
[387194287,1758633044063,-1766.11694215,0.00019178,2]
[387194289,1758633044072,-480.0,0.00019178,2]
[387194290,1758633044181,-699.07,0.00019178,2]
[387194291,1758633044191,-348.72492193,0.00019178,2]
[387194294,1758633046984,-131.27507807,0.00019178,2]
[387194295,1758633046994,-480.0,0.00019178,2]
[387194296,1758633047003,-480.0,0.00019178,2]
[387194297,1758633047013,-480.0,0.00019178,2]
[387194298,1758633047026,-20.02206093,0.00019178,2]
[387194302,1758633508074,1421.563575,0.00014,10]
[387194303,1758633508096,1693.936425,0.00014,10]
[387194334,1758634175354,160.0,0.00018,2]
[387194335,1758634181020,160.0,0.00018,2]
[387194338,1758634192210,160.0,0.00018,2]
[387194339,1758634202271,160.0,0.00018,2]
[387194565,1758634232475,-196.446425,0.00018078,2]
[387194566,1758634232484,-500.0,0.000181,2]
[387194567,1758634232494,-1200.0,0.00018168,2]
[387194568,1758634232503,-264.0,0.00018169,2]
[387194569,1758634232512,-300.0,0.00018169,2]
[387194570,1758634232521,-300.0,0.00018169,2]
[387194571,1758634232531,-300.0,0.00018169,2]
[387194572,1758634232540,-739.553575,0.0001817,2]
[387194573,1758634232551,-260.446425,0.0001817,2]
[387194574,1758634232561,-1004.06242318,0.0001817,2]
[387194575,1758634232570,-500.0,0.0001817,2]
[387194576,1758634232580,-1000.0,0.0001817,2]
[387194577,1758634232591,-468.68983547,0.00018794,2]
[387194578,1758634232600,-883.0,0.00018795,2]
[387194579,1758634232610,-174.26759782,0.00018795,2]
[387194580,1758634232620,-174.26759782,0.00018904,2]
[387194581,1758634232630,-174.26759782,0.00018986,2]
[387194582,1758634232641,-174.26759782,0.00019068,2]
[387194583,1758634232651,-1076.66596838,0.00019077,2]
[387194585,1758634232660,-152.58869774,0.00019078,2]
[387194587,1758634232670,-174.26759782,0.00019151,2]
[387194589,1758634232680,-1435.68,0.00019168,3]
[387194590,1758634232690,-717.84,0.00019168,3]
[387194591,1758634232699,-358.92,0.00019168,3]
[387194592,1758634232708,-179.46,0.00019168,3]
[387194593,1758634232717,-538.42,0.00019168,3]
[387194594,1758634232727,-500.0,0.00019173,2]
[387194595,1758634232736,-506.04110339,0.00019173,2]
[387194596,1758634232746,-514.68386253,0.00019173,2]
[387194597,1758634232755,-325.40730612,0.00019173,2]
[387194598,1758634232765,-500.0,0.00019173,2]
[387194599,1758634232774,-500.0,0.00019173,2]
[387194600,1758634232784,-500.0,0.00019173,2]
[387194601,1758634232794,-500.0,0.00019173,2]
[387194602,1758634232807,-500.0,0.00019173,2]
[387194603,1758634232817,-1000.0,0.00019177,2]
[387194604,1758634232827,-1000.0,0.00019177,2]
[387194605,1758634232836,-334.0,0.00019177,2]
[387194606,1758634232846,-158.454,0.00019177,2]
[387194607,1758634232856,-201.27231019,0.00019177,2]
[387194608,1758634232866,-500.0,0.00019177,2]
[387194609,1758634232876,-411.55646217,0.00019177,2]
[387194610,1758634232887,-500.0,0.00019177,2]
[387194611,1758634232897,-500.0,0.00019177,2]
[387194612,1758634232906,-500.0,0.00019177,2]
[387194613,1758634232916,-500.0,0.00019177,2]
[387194614,1758634232926,-217.96147515,0.00019177,2]
[387194615,1758634232936,-500.0,0.00019177,2]
[387194616,1758634232945,-480.0,0.00019178,2]
[387194617,1758634232954,-164.75050957,0.00019178,2]
[387194618,1758634232963,-480.0,0.00019178,2]
[387194619,1758634232974,-533.17068615,0.00019178,2]
[387194620,1758634232984,-480.0,0.00019178,2]
[387194621,1758634232993,-480.0,0.00019178,2]
[387194622,1758634233004,-480.0,0.00019178,2]
[387194623,1758634233013,-480.0,0.00019178,2]
[387194624,1758634233022,-492.28743693,0.00019178,2]
[387194625,1758634233032,-480.0,0.00019178,2]
[387194626,1758634233042,-480.0,0.00019178,2]
[387194627,1758634233052,-480.0,0.00019178,2]
[387194628,1758634233062,-480.0,0.00019178,2]
[387194629,1758634233071,-480.0,0.00019178,2]
[387194630,1758634233080,-480.0,0.00019178,2]
[387194631,1758634233092,-480.0,0.00019178,2]
[387194632,1758634233102,-480.0,0.00019178,2]
[387194633,1758634233112,-480.0,0.00019178,2]
[387194634,1758634233122,-1361.4033055,0.00019178,2]
[387194635,1758634233131,-480.0,0.00019178,2]
[387194636,1758634233141,-480.0,0.00019178,2]
[387194637,1758634233151,-480.0,0.00019178,2]
[387194638,1758634233161,-480.0,0.00019178,2]
[387194639,1758634233170,-480.0,0.00019178,2]
[387194640,1758634233179,-483.3046295,0.00019178,2]
[387194641,1758634233190,-480.0,0.00019178,2]
[387194642,1758634233200,-480.0,0.00019178,2]
[387194643,1758634233209,-213.35270535,0.00019178,2]
[387194644,1758634233386,-266.64729465,0.00019178,2]
[387194645,1758634233400,-474.89686386,0.00019178,2]
[387194646,1758634233416,-116.24012608,0.00019178,2]
[387194647,1758634233429,-454.27593271,0.00019178,2]
[387194648,1758634233445,-29.74607655,0.00019178,2]
[387194649,1758634233457,-484.31849384,0.00019178,2]
[387194650,1758634233470,-480.0,0.00019178,2]
[387194651,1758634233483,-162.82076395,0.00019178,2]
[387194652,1758634233516,-317.17923605,0.00019178,2]
[387194653,1758634233529,-377.41017629,0.00019178,2]
[387194654,1758634233542,-45.6066066,0.00019178,2]
[387194655,1758634233559,-434.3933934,0.00019178,2]
[387194656,1758634233572,-480.0,0.00019178,2]
[387194657,1758634233585,-480.0,0.00019178,2]
[387194658,1758634233599,-150.55065929,0.00019178,2]
[387194659,1758634233614,-480.0,0.00019178,2]
[387194660,1758634233629,-480.0,0.00019178,2]
[387194661,1758634233641,-268.69869495,0.00019178,2]
[387194662,1758634233652,-480.0,0.00019178,2]
[387194663,1758634233662,-480.0,0.00019178,2]
[387194664,1758634233674,-93.614439,0.00019178,2]
[387194665,1758634233692,-265.31770726,0.00019178,2]
[387194666,1758634233707,-121.06785374,0.00019178,2]
[387194667,1758634233718,-480.0,0.00019178,2]
[387194668,1758634233730,-98.78814626,0.00019178,2]
[387194669,1758634233746,-381.21185374,0.00019178,2]
[387194670,1758634233758,-587.02524603,0.00019178,2]
[387194671,1758634233772,-351.1607312,0.00019178,2]
[387194672,1758634233787,-128.8392688,0.00019178,2]
[387194673,1758634233801,-237.59333328,0.00019178,2]
[387194674,1758634233813,-480.0,0.00019178,2]
[387194675,1758634233829,-480.0,0.00019178,2]
[387194676,1758634233841,-480.0,0.00019178,2]
[387194677,1758634233853,-480.0,0.00019178,2]
[387194678,1758634233865,-480.0,0.00019178,2]
[387194679,1758634233878,-480.0,0.00019178,2]
[387194680,1758634233890,-480.0,0.00019178,2]
[387194681,1758634233902,-480.0,0.00019178,2]
[387194682,1758634233913,-480.0,0.00019178,2]
[387194683,1758634233926,-480.0,0.00019178,2]
[387194684,1758634233938,-480.0,0.00019178,2]
[387194685,1758634233950,-480.0,0.00019178,2]
[387194686,1758634233962,-480.0,0.00019178,2]
[387194687,1758634233975,-480.0,0.00019178,2]
[387194688,1758634233986,-480.0,0.00019178,2]
[387194689,1758634233998,-480.0,0.00019178,2]
[387194690,1758634234010,-480.0,0.00019178,2]
[387194691,1758634234022,-480.0,0.00019178,2]
[387194692,1758634234032,-460.31289302,0.00019178,2]
[387194720,1758634238364,-1037.59194052,0.0001817,2]
[387194744,1758634238588,-7604.68798707,0.0001817,2]
[387194746,1758634238601,-20.41192327,0.00019178,2]
[387194748,1758634238610,-480.0,0.00019178,2]
[387194750,1758634238620,-480.0,0.00019178,2]
[387194752,1758634238630,-83.87574713,0.00019178,2]
[387194754,1758634238642,-268.23870658,0.00019178,2]
[387194891,1758634243507,-127.88554629,0.00019178,2]
[387194892,1758634243517,-480.0,0.00019178,2]
[387194893,1758634243527,-480.0,0.00019178,2]
[387194894,1758634243536,-480.0,0.00019178,2]
[387194895,1758634243545,-480.0,0.00019178,2]
[387194896,1758634243554,-480.0,0.00019178,2]
[387194897,1758634243564,-480.0,0.00019178,2]
[387194898,1758634243573,-480.0,0.00019178,2]
[387194899,1758634243582,-480.0,0.00019178,2]
[387194900,1758634243592,-480.0,0.00019178,2]
[387194901,1758634243602,-480.0,0.00019178,2]
[387194902,1758634243611,-521.24399834,0.00019178,2]
[387194904,1758634243621,-480.0,0.00019178,2]
[387194905,1758634243631,-480.0,0.00019178,2]
[387194907,1758634243640,-480.0,0.00019178,2]
[387194908,1758634243650,-480.0,0.00019178,2]
[387194909,1758634243659,-480.0,0.00019178,2]
[387194912,1758634243669,-480.0,0.00019178,2]
[387194914,1758634243678,-480.0,0.00019178,2]
[387194916,1758634243688,-480.0,0.00019178,2]
[387194917,1758634243697,-480.0,0.00019178,2]
[387194918,1758634243706,-480.0,0.00019178,2]
[387194919,1758634243716,-480.0,0.00019178,2]
[387194920,1758634243725,-480.0,0.00019178,2]
[387194921,1758634243735,-316.46398706,0.00019178,2]
[387194922,1758634243744,-450.69541768,0.00019178,2]
[387194923,1758634243754,-480.0,0.00019178,2]
[387194924,1758634243764,-480.0,0.00019178,2]
[387194925,1758634243773,-480.0,0.00019178,2]
[387194926,1758634243782,-480.0,0.00019178,2]
[387194927,1758634243792,-480.0,0.00019178,2]
[387194928,1758634243801,-480.0,0.00019178,2]
[387194929,1758634243811,-480.0,0.00019178,2]
[387194930,1758634243820,-480.0,0.00019178,2]
[387194931,1758634243832,-480.0,0.00019178,2]
[387194932,1758634243842,-480.0,0.00019178,2]
[387194933,1758634243851,-480.0,0.00019178,2]
[387194934,1758634243860,-480.0,0.00019178,2]
[387194935,1758634243870,-480.0,0.00019178,2]
[387194936,1758634243879,-344.8479375,0.00019178,2]
[387194937,1758634243889,-489.61329056,0.00019178,2]
[387194938,1758634243898,-480.0,0.00019178,2]
[387194939,1758634243908,-480.0,0.00019178,2]
[387194940,1758634243918,-480.0,0.00019178,2]
[387194941,1758634243927,-480.0,0.00019178,2]
[387194942,1758634243937,-480.0,0.00019178,2]
[387194943,1758634243946,-480.0,0.00019178,2]
[387194944,1758634243956,-480.0,0.00019178,2]
[387194945,1758634243965,-202.88819794,0.00019178,2]
[387194946,1758634243975,-480.0,0.00019178,2]
[387194947,1758634243984,-151.0,0.00019178,2]
[387194948,1758634243994,-151.0,0.00019178,2]
[387194949,1758634244003,-151.0,0.00019178,2]
[387194950,1758634244012,-480.0,0.00019178,2]
[387194951,1758634244022,-205.77256121,0.00019178,2]
[387194952,1758634244031,-480.0,0.00019178,2]
[387194953,1758634244041,-179.06020794,0.00019178,2]
[387194954,1758634244052,-480.0,0.00019178,2]
[387194955,1758634244061,-200.24827857,0.00019178,2]
[387194956,1758634244070,-480.0,0.00019178,2]
[387194957,1758634244080,-480.0,0.00019178,2]
[387194958,1758634244089,-480.0,0.00019178,2]
[387194959,1758634244098,-480.0,0.00019178,2]
[387194960,1758634244108,-480.0,0.00019178,2]
[387194961,1758634244125,-484.86735474,0.00019178,2]
[387194962,1758634244135,-482.76231558,0.00019178,2]
[387194963,1758634244144,-480.0,0.00019178,2]
[387194964,1758634244154,-480.0,0.00019178,2]
[387194965,1758634244163,-480.0,0.00019178,2]
[387194966,1758634244174,-480.0,0.00019178,2]
[387194967,1758634244184,-480.0,0.00019178,2]
[387194968,1758634244195,-485.61578954,0.00019178,2]
[387194969,1758634244205,-622.42,0.00019178,2]
[387194970,1758634244216,-453.60001914,0.00019178,2]
[387194971,1758634244226,-480.0,0.00019178,2]
[387194972,1758634244235,-480.0,0.00019178,2]
[387194973,1758634244244,-480.0,0.00019178,2]
[387194974,1758634244254,-487.37103178,0.00019178,2]
[387194975,1758634244263,-485.74503395,0.00019178,2]
[387194976,1758634244272,-480.0,0.00019178,2]
[387194977,1758634244283,-480.0,0.00019178,2]
[387194978,1758634244292,-480.0,0.00019178,2]
[387194979,1758634244302,-488.94718418,0.00019178,2]
[387194980,1758634244312,-480.0,0.00019178,2]
[387194981,1758634244322,-480.0,0.00019178,2]
[387194982,1758634244336,-480.0,0.00019178,2]
[387194983,1758634244346,-480.0,0.00019178,2]
[387194984,1758634244363,-480.0,0.00019178,2]
[387194985,1758634244374,-480.0,0.00019178,2]
[387194986,1758634244390,-480.0,0.00019178,2]
[387194987,1758634244400,-480.0,0.00019178,2]
[387194988,1758634244409,-480.0,0.00019178,2]
[387194989,1758634244419,-489.11563356,0.00019178,2]
[387194990,1758634244429,-480.0,0.00019178,2]
[387194991,1758634244438,-483.72816963,0.00019178,2]
[387194992,1758634244447,-480.0,0.00019178,2]
[387194993,1758634244456,-480.0,0.00019178,2]
[387194994,1758634244466,-480.0,0.00019178,2]
[387194995,1758634244475,-480.0,0.00019178,2]
[387194996,1758634244484,-480.0,0.00019178,2]
[387194997,1758634244494,-480.0,0.00019178,2]
[387194998,1758634244503,-480.0,0.00019178,2]
[387194999,1758634244512,-480.0,0.00019178,2]
[387195000,1758634244522,-480.0,0.00019178,2]
[387195001,1758634244532,-480.0,0.00019178,2]
[387195002,1758634244542,-486.44297629,0.00019178,2]
[387195003,1758634244551,-480.0,0.00019178,2]
[387195004,1758634244561,-480.0,0.00019178,2]
[387195005,1758634244571,-480.0,0.00019178,2]
[387195006,1758634244580,-480.0,0.00019178,2]
[387195007,1758634244590,-480.0,0.00019178,2]
[387195008,1758634244602,-599.39919038,0.00019178,2]
[387195009,1758634244611,-500.0,0.00019178,2]
[387195010,1758634244621,-480.0,0.00019178,2]
[387195011,1758634244630,-480.0,0.00019178,2]
[387195012,1758634244641,-489.03159723,0.00019178,2]
[387195013,1758634244650,-493.35566847,0.00019178,2]
[387195014,1758634244660,-482.49026979,0.00019178,2]
[387195015,1758634244670,-480.0,0.00019178,2]
[387195016,1758634244679,-490.80762753,0.00019178,2]
[387195017,1758634244689,-486.14376906,0.00019178,2]
[387195018,1758634244698,-626.53,0.00019178,2]
[387195019,1758634244708,-480.0,0.00019178,2]
[387195020,1758634244718,-480.0,0.00019178,2]
[387195021,1758634244727,-480.0,0.00019178,2]
[387195022,1758634244737,-480.0,0.00019178,2]
[387195023,1758634244746,-482.80728571,0.00019178,2]
[387195024,1758634244756,-480.0,0.00019178,2]
[387195025,1758634244765,-480.0,0.00019178,2]
[387195026,1758634244775,-480.0,0.00019178,2]
[387195027,1758634244785,-480.0,0.00019178,2]
[387195028,1758634244794,-480.0,0.00019178,2]
[387195029,1758634244804,-480.0,0.00019178,2]
[387195030,1758634244814,-480.0,0.00019178,2]
[387195031,1758634244827,-480.0,0.00019178,2]
[387195032,1758634244836,-480.0,0.00019178,2]
[387195033,1758634244846,-480.0,0.00019178,2]
[387195034,1758634244857,-480.0,0.00019178,2]
[387195035,1758634244868,-480.0,0.00019178,2]
[387195036,1758634244877,-483.35385649,0.00019178,2]
[387195037,1758634244887,-480.0,0.00019178,2]
[387195038,1758634244897,-480.0,0.00019178,2]
[387195039,1758634244907,-480.0,0.00019178,2]
[387195040,1758634244916,-266.8010263,0.00019178,2]
[387195041,1758634244927,-5134.66,0.00019178,2]
[387195042,1758634244936,-484.26439328,0.00019178,2]
[387195043,1758634244945,-480.0,0.00019178,2]
[387195044,1758634244955,-480.0,0.00019178,2]
[387195045,1758634244964,-480.0,0.00019178,2]
[387195046,1758634244973,-480.0,0.00019178,2]
[387195047,1758634244983,-480.0,0.00019178,2]
[387195048,1758634244992,-480.0,0.00019178,2]
[387195049,1758634245002,-480.0,0.00019178,2]
[387195050,1758634245011,-480.0,0.00019178,2]
[387195051,1758634245021,-480.0,0.00019178,2]
[387195052,1758634245030,-480.0,0.00019178,2]
[387195053,1758634245039,-480.0,0.00019178,2]
[387195054,1758634245048,-480.0,0.00019178,2]
[387195055,1758634245058,-480.0,0.00019178,2]
[387195056,1758634245067,-480.0,0.00019178,2]
[387195057,1758634245076,-480.0,0.00019178,2]
[387195058,1758634245086,-480.0,0.00019178,2]
[387195059,1758634245095,-480.0,0.00019178,2]
[387195060,1758634245107,-480.0,0.00019178,2]
[387195061,1758634245116,-480.0,0.00019178,2]
[387195062,1758634245125,-480.0,0.00019178,2]
[387195063,1758634245135,-480.0,0.00019178,2]
[387195064,1758634245144,-480.0,0.00019178,2]
[387195065,1758634245254,-480.0,0.00019178,2]
[387195066,1758634245264,-480.0,0.00019178,2]
[387195067,1758634245274,-480.0,0.00019178,2]
[387195068,1758634245283,-480.0,0.00019178,2]
[387195069,1758634245293,-480.0,0.00019178,2]
[387195070,1758634245303,-500.0,0.00019178,2]
[387195071,1758634245312,-480.0,0.00019178,2]
[387195072,1758634245321,-482.96352197,0.00019178,2]
[387195073,1758634245330,-480.0,0.00019178,2]
[387195074,1758634245339,-480.0,0.00019178,2]
[387195075,1758634245349,-701.63,0.00019178,2]
[387195076,1758634245359,-480.0,0.00019178,2]
[387195077,1758634245368,-480.0,0.00019178,2]
[387195078,1758634245377,-480.0,0.00019178,2]
[387195079,1758634245386,-480.0,0.00019178,2]
[387195080,1758634245396,-480.0,0.00019178,2]
[387195081,1758634245405,-480.0,0.00019178,2]
[387195082,1758634245414,-480.0,0.00019178,2]
[387195083,1758634245424,-214.25040812,0.00019178,2]
[387195084,1758634245434,-480.0,0.00019178,2]
[387195085,1758634245443,-436.24045422,0.00019178,2]
[387195086,1758634245453,-480.0,0.00019178,2]
[387195087,1758634245463,-172.02875485,0.00019178,2]
[387195088,1758634245472,-480.0,0.00019178,2]
[387195089,1758634245481,-696.83,0.00019178,2]
[387195090,1758634245490,-2390.27,0.00019178,2]
[387195091,1758634245500,-480.0,0.00019178,2]
[387195092,1758634245510,-480.0,0.00019178,2]
[387195093,1758634245519,-480.0,0.00019178,2]
[387195094,1758634245529,-480.0,0.00019178,2]
[387195095,1758634245538,-480.0,0.00019178,2]
[387195096,1758634245547,-480.0,0.00019178,2]
[387195097,1758634245556,-480.0,0.00019178,2]
[387195098,1758634245566,-480.0,0.00019178,2]
[387195099,1758634245576,-483.71160833,0.00019178,2]
[387195100,1758634245585,-480.0,0.00019178,2]
[387195101,1758634245595,-480.0,0.00019178,2]
[387195102,1758634245607,-480.0,0.00019178,2]
[387195103,1758634245617,-480.0,0.00019178,2]
[387195104,1758634245626,-480.0,0.00019178,2]
[387195105,1758634245636,-709.94,0.00019178,2]